bitfinex/quotes_SOLUSD_20241220
["timestamp","ask_amount","ask_price","bid_price","bid_amount"]
[1734706567637,0.6733706,188.78,188.67,39.94914464]
[1734706567838,0.6733706,188.78,188.68,0.12549]
[1734706568020,0.6733706,188.78,188.68,0.92014124]
[1734706568425,0.6733706,188.78,188.68,0.12549]
[1734706569949,0.6733706,188.78,188.67,53.19964464]
[1734706570150,0.6733706,188.78,188.67,13.2505]
[1734706570350,0.6733706,188.78,188.65,1.5436]
[1734706570735,0.6733706,188.78,188.66,0.12549]
[1734706571643,0.6733706,188.78,188.65,1.5436]
[1734706572158,0.6733706,188.78,188.64,6.2565]
[1734706572654,0.6733706,188.78,188.65,0.12549]
[1734706573735,0.12549,188.77,188.64,6.2565]
[1734706574036,0.6733706,188.78,188.64,6.2565]
[1734706574551,0.12549,188.77,188.61,40.74408993]
[1734706574755,20.12549,188.77,188.61,40.74408993]
[1734706574938,20.12549,188.77,188.61,39.94914464]
[1734706575136,20.12549,188.77,188.6,0.12549]
[1734706575641,13.2443,188.76,188.59,1.5325]
[1734706575951,6.72629,188.72,188.58,6.1968]
[1734706576136,20.0,188.69,188.58,6.1968]
[1734706577233,0.12549,188.68,188.53,21.5017]
[1734706577538,0.12549,188.68,188.5,13.2624]
[1734706577741,0.12549,188.64,188.48,6.5968]
[1734706578143,0.12549,188.64,188.44,39.94914464]
[1734706578144,20.0,188.6,188.44,39.94914464]
[1734706578346,20.0,188.6,188.44,53.21584464]
[1734706578631,0.12549,188.59,188.44,53.21584464]
[1734706578832,20.0,188.6,188.47,0.12549]
[1734706579032,20.0,188.6,188.48,39.94914464]
[1734706579761,20.0,188.65,188.49,0.12549]
[1734706579933,20.0,188.67,188.5,39.94914464]
[1734706580135,0.12549,188.66,188.51,0.92088158]
[1734706580347,20.0,188.67,188.51,0.92088158]
[1734706580555,6.5494,188.7,188.52,39.94914464]
[1734706580726,6.5494,188.7,188.53,0.12549]
[1734706580933,6.5494,188.7,188.52,39.94914464]
[1734706581239,0.12549,188.69,188.51,0.12549]
[1734706582038,0.12549,188.69,188.52,39.94914464]
[1734706582543,20.0,188.67,188.52,39.94914464]
[1734706583056,20.0,188.67,188.5,1.568]
[1734706583057,0.12549,188.66,188.5,1.568]
[1734706583257,0.12549,188.66,188.51,0.12549]
[1734706583459,0.12549,188.66,188.5,1.568]
[1734706583858,0.12549,188.66,188.5,41.51714464]
[1734706584056,0.12549,188.66,188.5,1.568]
[1734706584363,0.12549,188.66,188.44,41.56654464]
[1734706584567,20.0,188.62,188.45,0.12549]
[1734706584762,20.0,188.62,188.47,0.12549]
[1734706584969,20.0,188.62,188.46,39.94914464]
[1734706585149,20.0,188.62,188.47,0.12549]
[1734706585779,20.0,188.62,188.44,54.83334464]
[1734706585780,0.12549,188.61,188.44,54.83334464]
[1734706586571,0.12549,188.61,188.44,1.6174]
[1734706586772,0.12549,188.58,188.44,1.6174]
[1734706587783,0.12549,188.58,188.42,6.5968]
[1734706587944,27.9634,188.59,188.42,6.5968]
[1734706587945,20.12549,188.56,188.42,6.5968]
[1734706588276,0.12549,188.54,188.37,19.9311]
[1734706588961,0.12549,188.54,188.37,6.66]
[1734706589361,0.12549,188.54,188.38,0.79604287]
[1734706589561,0.12549,188.54,188.39,0.12549]
[1734706590854,0.12549,188.54,188.37,6.66]
[1734706591056,0.12549,188.55,188.37,6.66]
[1734706591461,0.12549,188.55,188.32,44.06040032]
[1734706591658,0.12549,188.55,188.32,19.6815]
[1734706591880,0.12549,188.5,188.32,19.6815]
[1734706592386,20.0,188.49,188.32,6.4064]
[1734706592588,20.0,188.49,188.32,30.78530032]
[1734706593083,20.0,188.49,188.34,24.50439032]
[1734706593384,20.0,188.51,188.32,30.78530032]
[1734706593580,0.12549,188.5,188.33,0.12549]
[1734706593790,20.12549,188.5,188.32,6.4064]
[1734706594089,0.12549,188.48,188.32,6.4064]
[1734706594252,0.12549,188.46,188.26,30.78530032]
[1734706594455,0.12549,188.43,188.26,6.4064]
[1734706595256,0.12549,188.41,188.23,1.5927]
[1734706595693,0.12549,188.41,188.23,2.38929459]
[1734706595895,0.12549,188.41,188.26,24.37890032]
[1734706596180,0.12549,188.41,188.27,0.79635027]
[1734706596388,0.12549,188.41,188.24,24.37890032]
[1734706596761,0.12549,188.41,188.25,0.79646053]
[1734706598287,33.2668,188.44,188.25,0.79646053]
[1734706598288,20.0,188.44,188.29,0.12549]
[1734706598465,6.0485,188.47,188.29,0.12549]
[1734706598662,0.12549,188.46,188.29,0.12549]
[1734706599172,6.0485,188.47,188.31,0.12549]
[1734706599805,6.0485,188.47,188.3,0.79627019]
[1734706600182,0.12549,188.46,188.31,20.0]
[1734706600580,20.0,188.44,188.3,0.12549]
[1734706600783,20.0,188.44,188.34,0.12549]
[1734706601092,6.2022,188.52,188.36,0.12549]
[1734706601293,6.2022,188.52,188.37,24.37890032]
[1734706601714,0.12549,188.51,188.37,24.37890032]
[1734706601872,0.12549,188.51,188.36,0.12549]
[1734706602072,0.12549,188.51,188.35,46.77038521]
[1734706602278,0.12549,188.51,188.32,6.5968]
[1734706602675,0.12549,188.46,188.32,6.5968]
[1734706603666,20.0,188.49,188.34,24.37890032]
[1734706603871,20.0,188.49,188.35,0.79610996]
[1734706604308,0.12549,188.51,188.35,0.79610996]
[1734706604806,0.12549,188.51,188.34,24.37890032]
[1734706605308,11.71399626,188.65,188.49,1.5891]
[1734706605480,11.71399626,188.65,188.5,6.107]
[1734706605800,65.70820896,188.68,188.5,6.107]
[1734706606167,0.12549,188.68,188.5,6.107]
[1734706606371,1.6556,188.7,188.51,25.29981935]
[1734706606873,1.6556,188.7,188.54,0.12549]
[1734706607204,1.6556,188.7,188.54,39.68482557]
[1734706608273,0.12549,188.69,188.54,0.12549]
[1734706608608,1.6556,188.7,188.54,0.12549]
[1734706609376,20.0,188.72,188.61,39.55933557]
[1734706609572,0.6733706,188.78,188.62,6.50209]
[1734706609799,0.6733706,188.78,188.63,39.55933557]
[1734706610801,0.6733706,188.78,188.63,40.3542116]
[1734706611523,20.0,188.77,188.63,40.3542116]
[1734706611819,0.6733706,188.78,188.66,0.12549]
[1734706612109,0.6733706,188.78,188.67,39.55933557]
[1734706612296,0.6733706,188.78,188.67,40.3540822]
[1734706613015,0.6733706,188.78,188.66,0.12549]
[1734706613424,0.6733706,188.78,188.67,40.35402998]
[1734706613627,0.6733706,188.78,188.67,0.79469441]
[1734706613803,0.6733706,188.78,188.67,40.35402998]
[1734706614321,0.6733706,188.78,188.67,0.79469441]
[1734706614529,0.6733706,188.78,188.68,0.79469617]
[1734706615321,0.6733706,188.78,188.66,40.35399964]
[1734706615700,0.6733706,188.78,188.66,39.55933557]
[1734706616025,0.6733706,188.78,188.67,0.79475987]
[1734706616723,0.6733706,188.78,188.66,40.35401573]
[1734706617233,0.6733706,188.78,188.66,39.55933557]
[1734706617405,0.6733706,188.78,188.68,39.55933557]
[1734706617594,0.6733706,188.78,188.71,20.0]
[1734706618130,0.6733706,188.97,188.79,20.0]
[1734706618300,0.6733706,188.97,188.82,39.55933557]
[1734706619424,0.6733706,188.97,188.84,39.55933557]
[1734706619614,0.6733706,188.97,188.85,6.6171]
[1734706620509,0.6733706,188.97,188.87,0.12549]
[1734706620900,0.6733706,188.97,188.88,59.55933557]
[1734706621318,0.6733706,188.97,188.89,0.12549]
[1734706621504,0.6733706,188.97,188.95,39.55933557]
[1734706622002,0.6733706,188.97,188.96,0.79351982]
[1734706622201,0.6733706,188.97,188.96,0.91900982]
[1734706622618,13.2124,189.22,188.97,0.12549]
[1734706622823,13.2124,189.22,189.0,39.55933557]
[1734706623526,0.12549,189.15,189.0,39.55933557]
[1734706624027,13.2124,189.22,189.0,39.55933557]
[1734706624560,34.4077,189.24,188.91,39.55933557]
[1734706624561,0.12549,189.15,188.96,39.55933557]
[1734706624735,13.2177,189.14,188.94,39.55933557]
[1734706624901,0.12549,189.1,188.94,39.55933557]
[1734706625100,20.0,189.11,188.96,39.55933557]
[1734706625630,20.12549,189.15,188.96,39.55933557]
[1734706626002,20.12549,189.15,188.98,39.55933557]
[1734706626803,20.12549,189.15,188.96,39.55933557]
[1734706628330,20.0,189.15,189.0,39.55933557]
[1734706628532,13.2152,189.18,189.0,39.55933557]
[1734706628739,38.76599435,189.24,188.94,39.55933557]
[1734706628740,0.12549,189.14,188.94,39.55933557]
[1734706629038,0.12549,189.14,188.92,39.55933557]
[1734706629398,0.12549,189.12,188.92,39.55933557]
[1734706629598,20.12549,189.12,188.92,39.55933557]
[1734706629836,20.12549,189.12,188.94,39.55933557]
[1734706630052,20.12549,189.12,188.92,39.55933557]
[1734706630714,20.12549,189.12,188.94,39.55933557]
[1734706631330,0.12549,189.12,188.96,39.55933557]
[1734706631528,1.6042,189.13,188.96,39.55933557]
[1734706631843,1.6042,189.13,188.98,39.55933557]
[1734706632440,0.12549,189.12,188.96,39.55933557]
[1734706632640,0.12549,189.12,188.94,39.55933557]
[1734706632809,0.12549,189.12,188.92,39.55933557]
[1734706633010,0.12549,189.1,188.9,24.25473224]
[1734706633547,0.12549,189.07,188.86,24.25473224]
[1734706633914,0.12549,189.07,188.85,6.6171]
[1734706634435,0.12549,189.07,188.8,25.04867856]
[1734706634631,20.0,189.03,188.8,25.04867856]
[1734706634836,20.0,189.03,188.8,24.25473224]
[1734706635155,0.12549,189.02,188.81,39.45174883]
[1734706635710,20.0,188.98,188.81,39.45174883]
[1734706636247,0.12549,188.97,188.81,39.45174883]
[1734706637056,0.12549,188.97,188.79,45.85304883]
[1734706638129,0.12549,188.97,188.8,0.79418641]
[1734706638545,20.0,188.96,188.8,0.79418641]
[1734706639139,20.0,188.96,188.79,45.85304883]
[1734706639140,0.12549,188.95,188.79,45.85304883]
[1734706639346,0.12549,188.95,188.79,46.64724607]
[1734706641154,0.12549,188.95,188.79,45.85304883]
[1734706641566,0.12549,188.96,188.81,39.45174883]
[1734706641862,0.12549,188.96,188.79,6.4013]
[1734706641863,6.0015,189.06,188.86,39.45174883]
[1734706642240,6.0015,189.06,188.86,40.24554443]
[1734706642437,19.2253,189.06,188.86,0.7937956]
[1734706642643,19.2253,189.06,188.83,1.6134]
[1734706642853,0.12549,189.05,188.83,1.6134]
[1734706643353,0.12549,189.05,188.84,39.45174883]
[1734706643738,1.6407,189.08,188.86,39.45174883]
[1734706644064,1.6407,189.08,188.87,0.79379394]
[1734706644274,0.12549,189.07,188.87,0.79379394]
[1734706644577,0.12549,189.07,188.85,0.12549]
[1734706644578,13.34809,189.07,188.84,39.45174883]
[1734706644871,39.79329,189.07,188.8,39.45174883]
[1734706645041,48.83971131,189.07,188.8,39.45174883]
[1734706645244,0.12549,189.05,188.78,39.45174883]
[1734706645568,0.12549,189.0,188.8,39.45174883]
[1734706645751,0.12549,189.0,188.81,0.79409235]
[1734706645943,0.12549,189.0,188.8,39.45174883]
[1734706646656,0.12549,188.95,188.8,39.45174883]
[1734706646835,0.12549,188.95,188.78,39.45174883]
[1734706648481,0.12549,189.0,188.78,39.45174883]
[1734706648778,0.12549,188.96,188.78,39.45174883]
[1734706649550,0.12549,188.96,188.77,1.5899]
[1734706649974,0.12549,188.96,188.78,39.45174883]
[1734706650275,0.12549,188.96,188.8,39.45174883]
[1734706650445,0.12549,188.96,188.81,0.79411576]
[1734706651272,0.12549,188.96,188.8,39.45174883]
[1734706651580,0.12549,188.96,188.79,6.4013]
[1734706651878,33.2274,189.01,188.82,39.45174883]
[1734706652080,31.13332696,189.07,188.84,39.45174883]
[1734706652255,13.2247,189.04,188.86,39.45174883]
[1734706652952,0.12549,189.03,188.85,0.79393172]
[1734706653139,0.12549,189.03,188.86,39.45174883]
[1734706653676,0.12549,189.0,188.84,39.45174883]
[1734706653881,0.12549,188.98,188.84,39.45174883]
[1734706654078,20.0,188.99,188.84,39.45174883]
[1734706654253,0.12549,188.98,188.84,39.45174883]
[1734706654779,0.12549,188.98,188.82,39.45174883]
[1734706654986,0.12549,188.98,188.8,40.24569854]
[1734706655479,13.2261,189.02,188.8,40.24569854]
[1734706655480,0.12549,189.02,188.8,40.24569854]
[1734706655776,0.12549,188.98,188.8,39.45174883]
[1734706656075,0.12549,188.98,188.82,39.45174883]
[1734706656275,20.0,188.99,188.84,39.45174883]
[1734706656482,20.0,189.03,188.86,39.45174883]
[1734706656642,0.12549,189.02,188.86,39.45174883]
[1734706656843,20.0,189.03,188.86,39.45174883]
[1734706657076,19.4051,189.06,188.87,24.25977841]
[1734706657285,0.12549,189.05,188.87,24.25977841]
[1734706657974,0.12549,189.03,188.87,24.25977841]
[1734706658176,0.12549,189.0,188.83,24.25977841]
[1734706658897,0.12549,189.0,188.81,24.25977841]
[1734706659496,0.12549,188.95,188.79,30.66107841]
[1734706660266,0.12549,188.95,188.79,6.4013]
[1734706660468,0.12549,188.93,188.79,6.4013]
[1734706660688,0.12549,188.9,188.79,6.4013]
[1734706662299,20.0,188.91,188.79,6.4013]
[1734706662871,0.12549,188.9,188.79,6.4013]
[1734706663296,0.12549,188.88,188.79,6.4013]
[1734706663476,0.12549,188.88,188.73,30.45817841]
[1734706663682,0.12549,188.88,188.73,6.1984]
[1734706664392,0.12549,188.88,188.73,30.45817841]
[1734706665092,20.0,188.91,188.73,6.1984]
[1734706665264,0.12549,188.86,188.69,24.25977841]
[1734706665468,0.12549,188.86,188.68,6.2019]
[1734706666210,1.6551,188.85,188.68,6.2019]
[1734706666369,1.6551,188.85,188.69,25.05445983]
[1734706666579,1.6551,188.85,188.71,24.25977841]
[1734706666890,0.12549,188.84,188.71,24.25977841]
[1734706667087,1.6551,188.85,188.71,24.25977841]
[1734706667265,20.0,188.87,188.72,0.79459346]
[1734706667690,20.0,188.88,188.75,24.25977841]
[1734706667975,1.6385,188.91,188.77,24.25977841]
[1734706668175,6.0431,188.94,188.79,6.0137]
[1734706668892,0.12549,188.93,188.79,6.0137]
[1734706669395,13.2331,188.92,188.79,6.0137]
[1734706669630,20.0,188.89,188.79,6.0137]
[1734706669807,0.12549,188.88,188.79,6.0137]
[1734706670803,0.12549,188.85,188.73,6.4271]
[1734706672393,0.12549,188.88,188.73,6.4271]
[1734706672600,0.12549,188.83,188.73,6.4271]
[1734706673983,20.0,188.87,188.73,6.4271]
[1734706674489,0.12549,188.89,188.73,6.4271]
[1734706676179,0.12549,188.86,188.73,6.4271]
[1734706678012,0.12549,188.84,188.73,6.4271]
[1734706680305,0.12549,188.84,188.67,6.1539]
[1734706680520,20.0,188.84,188.68,25.05445822]
[1734706680704,0.12549,188.83,188.68,25.05445822]
[1734706681324,20.0,188.84,188.7,24.25977841]
[1734706681529,1.5289,188.87,188.72,24.25977841]
[1734706681893,1.5289,188.87,188.71,0.79447995]
[1734706682220,0.12549,188.86,188.68,25.05434033]
[1734706682534,0.12549,188.86,188.68,24.25977841]
[1734706682733,21.5289,188.87,188.7,24.25977841]
[1734706683031,21.5289,188.87,188.71,0.79451499]
[1734706683526,0.12549,188.86,188.71,0.79451499]
[1734706684994,20.12549,188.86,188.7,24.25977841]
[1734706685491,0.12549,188.81,188.68,0.79452038]
[1734706685699,20.0,188.82,188.68,25.05429879]
[1734706686091,13.2361,188.88,188.68,25.05429879]
[1734706686092,0.12549,188.84,188.68,25.05429879]
[1734706687422,0.12549,188.84,188.68,0.79452038]
[1734706687603,13.2338,188.91,188.72,24.25977841]
[1734706688026,0.12549,188.86,188.7,24.25977841]
[1734706688523,26.89246419,188.92,188.74,24.25977841]
[1734706688826,18.67893807,188.92,188.74,24.25977841]
[1734706689416,0.12549,188.91,188.74,24.25977841]
[1734706689807,18.67893807,188.92,188.74,24.25977841]
[1734706690126,0.12549,188.88,188.74,24.25977841]
[1734706690292,5.44573807,188.92,188.76,25.82617841]
[1734706690499,20.05310669,188.98,188.8,24.25977841]
[1734706690698,8.21352612,188.98,188.8,24.25977841]
[1734706691003,31.93283242,188.99,188.82,24.25977841]
[1734706691204,18.70393242,188.99,188.83,0.79411083]
[1734706691600,18.70393242,188.99,188.84,24.25977841]
[1734706691807,7.10693807,188.99,188.86,24.25977841]
[1734706692007,1.6612,188.99,188.86,24.25977841]
[1734706692223,5.44573807,189.03,188.87,0.79387772]
[1734706692729,5.44573807,189.03,188.88,24.25977841]
[1734706692906,0.12549,189.02,188.88,24.25977841]
[1734706693107,20.0,189.0,188.88,24.25977841]
[1734706693404,20.0,189.0,188.89,0.79376898]
[1734706693608,20.0,189.0,188.88,24.25977841]
[1734706694103,20.0,189.0,188.86,25.05356865]
[1734706694326,0.12549,188.99,188.85,6.2548]
[1734706695506,20.0,188.98,188.85,6.2548]
[1734706695926,0.12549,188.97,188.85,6.2548]
[1734706697635,0.12549,188.97,188.84,24.25977841]
[1734706698540,0.12549,188.97,188.83,6.96943691]
[1734706699431,0.12549,188.93,188.83,6.1754]
[1734706699623,0.12549,188.93,188.78,6.1754]
[1734706699834,12.28948669,188.93,188.78,6.1754]
[1734706700137,20.12549,188.89,188.73,6.1754]
[1734706700534,25.94678669,188.89,188.7,1.6469]
[1734706700708,0.12549,188.84,188.68,6.6203]
[1734706701035,0.12549,188.82,188.68,6.6203]
[1734706702037,20.0,188.81,188.68,6.6203]
[1734706702401,0.12549,188.8,188.68,6.6203]
[1734706703215,0.12549,188.78,188.68,6.6203]
[1734706703421,20.12549,188.78,188.63,6.605]
[1734706704909,20.0,188.79,188.64,24.25977841]
[1734706705324,0.12549,188.78,188.64,24.25977841]
[1734706705639,0.12549,188.78,188.63,6.605]
[1734706706418,0.12549,188.74,188.58,20.0]
[1734706706732,0.12549,188.74,188.59,24.25977841]
[1734706707127,0.12549,188.74,188.6,0.7950886]
[1734706707325,0.12549,188.74,188.59,24.25977841]
[1734706710220,0.12549,188.74,188.56,0.7950886]
[1734706710424,0.12549,188.69,188.55,6.6136]
[1734706710620,0.12549,188.67,188.55,6.6136]
[1734706711136,0.12549,188.67,188.5,6.7909706]
[1734706711337,0.12549,188.63,188.5,6.7909706]
[1734706711655,0.12549,188.62,188.5,6.7909706]
[1734706712245,0.12549,188.56,188.5,0.6733706]
[1734706712449,0.12549,188.55,188.5,0.6733706]
[1734706713344,20.12549,188.55,188.5,0.6733706]
[1734706714252,0.12549,188.53,188.34,6.4867]
[1734706714552,0.12549,188.5,188.35,24.25977841]
[1734706714733,0.12549,188.5,188.37,24.25977841]
[1734706716519,0.12549,188.5,188.37,25.05572674]
[1734706716727,0.12549,188.5,188.39,24.25977841]
[1734706717235,0.12549,188.5,188.37,45.05572674]
[1734706717434,0.12549,188.5,188.37,25.05572674]
[1734706720152,20.0,188.51,188.4,20.0]
[1734706720352,20.0,188.55,188.4,20.0]
[1734706720651,20.0,188.55,188.42,20.0]
[1734706720951,6.29651891,188.58,188.44,20.0]
[1734706721130,0.12549,188.57,188.45,6.3495]
[1734706721334,5.61631902,188.63,188.48,20.0]
[1734706721638,6.2334,188.64,188.48,0.79549596]
[1734706722842,6.2334,188.64,188.49,24.25977841]
[1734706723158,0.12549,188.64,188.5,0.79537363]
[1734706723360,6.29651891,188.65,188.5,0.79537363]
[1734706723530,6.29651891,188.65,188.52,20.0]
[1734706723730,0.12549,188.64,188.52,20.79540914]
[1734706723932,12.56011891,188.69,188.53,24.25977841]
[1734706724133,12.56011891,188.69,188.54,0.7952337]
[1734706724552,0.12549,188.68,188.54,0.7952337]
[1734706724731,6.29651891,188.69,188.57,6.292]
[1734706724927,1.6393,188.72,188.58,0.79512729]
[1734706725738,0.12549,188.71,188.57,6.292]
[1734706726049,1.6393,188.72,188.57,31.34691824]
[1734706727447,0.12549,188.71,188.57,6.292]
[1734706727643,20.12549,188.71,188.57,6.292]
[1734706728044,20.12549,188.71,188.58,0.79516886]
[1734706728240,1.5281,188.77,188.59,24.25977841]
[1734706728440,3.62404631,188.77,188.6,0.79497377]
[1734706728737,0.12549,188.76,188.6,0.79497377]
[1734706729065,0.12549,188.76,188.6,20.0]
[1734706729560,0.12549,188.76,188.57,30.55177841]
[1734706729757,6.42200891,188.76,188.57,30.55177841]
[1734706730065,0.12549,188.71,188.57,30.55177841]
[1734706730369,0.12549,188.71,188.57,6.292]
[1734706731160,0.12549,188.71,188.57,31.34693172]
[1734706731458,20.0,188.73,188.57,31.34693172]
[1734706731761,20.0,188.73,188.59,24.25977841]
[1734706731933,20.0,188.73,188.59,25.05486017]
[1734706732139,0.12549,188.72,188.59,25.05486017]
[1734706732650,6.29651891,188.76,188.59,25.05486017]
[1734706732859,1.5281,188.77,188.61,24.25977841]
[1734706733165,1.5281,188.77,188.63,24.25977841]
[1734706733368,0.12549,188.76,188.66,20.0]
[1734706733760,0.12549,188.78,188.66,20.0]
[1734706734258,0.12549,188.78,188.67,0.79477981]
[1734706734859,0.12549,188.75,188.61,24.25977841]
[1734706735078,0.12549,188.75,188.62,0.79497621]
[1734706735238,0.12549,188.75,188.63,24.25977841]
[1734706735439,0.12549,188.75,188.64,0.7948394]
[1734706735640,0.12549,188.75,188.64,20.0]
[1734706736456,0.12549,188.75,188.62,0.79491326]
[1734706736638,0.12549,188.75,188.62,20.0]
[1734706736838,0.12549,188.75,188.59,25.05478237]
[1734706737033,0.12549,188.75,188.59,0.79500396]
[1734706737252,0.12549,188.75,188.61,24.25977841]
[1734706737568,0.12549,188.75,188.62,0.79498647]
[1734706739168,0.12549,188.75,188.62,20.79498647]
[1734706739965,0.12549,188.75,188.62,20.0]
[1734706740140,0.12549,188.75,188.6,0.79494299]
[1734706740773,0.12549,188.75,188.59,24.25977841]
[1734706740941,0.12549,188.75,188.57,6.292]
[1734706740942,0.12549,188.71,188.57,6.292]
[1734706741144,1.63529,188.71,188.57,6.292]
[1734706742179,1.63529,188.71,188.57,30.55177841]
[1734706742485,1.5098,188.71,188.58,0.79507873]
[1734706742765,0.12549,188.7,188.57,6.292]
[1734706743575,0.12549,188.7,188.57,7.08718098]
[1734706743749,0.12549,188.7,188.57,31.34695939]
[1734706744656,0.12549,188.7,188.57,6.292]
[1734706744852,20.12549,188.7,188.57,6.292]
[1734706745953,0.12549,188.65,188.52,6.1849]
[1734706746869,0.12549,188.61,188.47,6.4931]
[1734706747052,0.12549,188.61,188.44,6.1849]
[1734706747053,0.12549,188.59,188.44,6.1849]
[1734706747255,0.12549,188.53,188.43,6.4931]
[1734706748453,6.1743,188.57,188.43,7.28888833]
[1734706748873,0.12549,188.56,188.43,6.4931]
[1734706749251,0.12549,188.53,188.43,6.4931]
[1734706749779,0.12549,188.53,188.38,31.34855137]
[1734706749982,20.12549,188.53,188.38,6.293]
[1734706751067,20.12549,188.53,188.38,7.08903653]
[1734706751264,20.12549,188.53,188.38,31.34881494]
[1734706752498,0.12549,188.53,188.4,24.25977841]
[1734706752789,0.12549,188.53,188.4,25.05563272]
[1734706753759,0.12549,188.53,188.4,24.25977841]
[1734706754186,0.12549,188.53,188.38,31.34873971]
[1734706755554,0.12549,188.53,188.4,24.25977841]
[1734706755755,0.12549,188.53,188.41,0.79584705]
[1734706756596,6.1743,188.57,188.42,24.25977841]
[1734706756878,6.1743,188.57,188.43,0.79571192]
[1734706757053,13.2549,188.61,188.43,0.79571192]
[1734706757054,8.80467116,188.61,188.47,20.0]
[1734706757682,8.80467116,188.61,188.42,24.25977841]
[1734706757864,0.12549,188.59,188.42,24.25977841]
[1734706758172,6.43735738,188.59,188.4,24.25977841]
[1734706758676,0.12549,188.55,188.4,24.25977841]
[1734706759267,0.12549,188.55,188.39,0.79566711]
[1734706759458,0.12549,188.55,188.38,30.55277841]
[1734706760291,0.12549,188.55,188.4,24.25977841]
[1734706760492,0.12549,188.55,188.41,0.7958084]
[1734706761374,20.0,188.56,188.41,0.7958084]
[1734706761570,20.0,188.56,188.43,20.0]
[1734706761773,0.12549,188.55,188.42,25.05550186]
[1734706762687,0.12549,188.55,188.4,24.25977841]
[1734706762688,20.12549,188.55,188.4,24.25977841]
[1734706763063,0.12549,188.52,188.39,0.79577578]
[1734706764188,20.0,188.56,188.39,0.79577578]
[1734706764363,20.0,188.56,188.4,24.25977841]
[1734706764574,0.12549,188.55,188.4,24.25977841]
[1734706764775,0.12549,188.53,188.4,24.25977841]
[1734706764999,0.12549,188.53,188.41,0.79590019]
[1734706765369,2.10415496,188.58,188.42,24.25977841]
[1734706765568,6.6198,188.61,188.44,24.25977841]
[1734706765874,0.12549,188.59,188.44,24.25977841]
[1734706766092,0.12549,188.59,188.45,0.79565181]
[1734706766263,8.77868608,188.61,188.44,24.25977841]
[1734706766687,0.12549,188.59,188.44,24.25977841]
[1734706767193,0.12549,188.57,188.42,24.25977841]
[1734706767400,20.12549,188.57,188.42,24.25977841]
[1734706767996,20.12549,188.57,188.43,0.79575204]
[1734706767997,20.0,188.57,188.43,0.79575204]
[1734706768189,20.0,188.58,188.43,0.79575204]
[1734706768371,0.12549,188.57,188.43,0.79575204]
[1734706768572,0.12549,188.57,188.44,24.25977841]
[1734706768775,1.5742,188.6,188.47,20.0]
[1734706768976,0.12549,188.59,188.47,20.0]
[1734706770101,0.12549,188.59,188.45,2.37900453]
[1734706771099,0.12549,188.57,188.47,20.0]
[1734706771403,0.12549,188.57,188.47,20.7955756]
[1734706771580,20.0,188.61,188.48,6.2269]
[1734706773699,0.12549,188.6,188.48,6.2269]
[1734706774003,0.12549,188.58,188.48,6.2269]
[1734706774379,0.12549,188.58,188.45,1.5834]
[1734706775819,0.12549,188.56,188.44,6.2269]
[1734706775990,0.12549,188.54,188.44,6.2269]
[1734706776306,0.12549,188.52,188.4,31.84607841]
[1734706776682,0.12549,188.52,188.41,0.7958406]
[1734706777403,0.12549,188.52,188.4,31.84607841]
[1734706777585,0.12549,188.52,188.4,6.0628]
[1734706777796,0.12549,188.5,188.4,6.0628]
[1734706780521,0.12549,188.5,188.38,24.25977841]
[1734706781008,0.12549,188.5,188.36,25.05576932]
[1734706781310,0.12549,188.48,188.36,25.05576932]
[1734706781523,0.12549,188.48,188.36,25.05586777]
[1734706783005,0.12549,188.48,188.38,24.25977841]
[1734706783197,13.43011902,188.56,188.4,24.25977841]
[1734706783599,7.8138,188.56,188.43,20.0]
[1734706784300,0.12549,188.55,188.43,20.0]
[1734706784488,1.6187,188.56,188.43,20.79572566]
[1734706784915,20.0,188.54,188.43,20.79572566]
[1734706785288,0.12549,188.53,188.43,20.79572566]
[1734706785490,0.12549,188.53,188.42,20.0]
[1734706785716,0.12549,188.53,188.4,0.79585889]
[1734706787829,0.12549,188.53,188.41,24.25977841]
[1734706788115,0.12549,188.53,188.42,0.79577776]